fUSD/lending_fUSD_20250202
["ID","MTS","AMOUNT","RATE_DAILY","PERIOD"]
[351234185,1738463435710,-260.0,0.00015899,2]
[351234186,1738463435720,-841.561,0.000159,2]
[351234187,1738463435730,-156.5977,0.000159,2]
[351234188,1738463435740,-376.59,0.000159,2]
[351234189,1738463435749,-2985.59357598,0.000159,2]
[351234190,1738463435782,-8004.18785902,0.000159,2]
[351234191,1738463435791,-165.76857003,0.000159,2]
[351234192,1738463435800,-2937.61293776,0.000159,2]
[351234193,1738463435815,-1495.218,0.000159,2]
[351234194,1738463435825,-1333.70561696,0.000159,2]
[351234195,1738463435835,-1959.19599111,0.0001592,2]
[351234196,1738463435844,-1959.19599111,0.00015926,2]
[351234197,1738463435854,-1333.7056169,0.00015933,2]
[351234198,1738463435863,-1959.19599111,0.0001594,2]
[351234199,1738463435873,-291.66666667,0.00015945,2]
[351234200,1738463435882,-1333.7056169,0.00015967,2]
[351234201,1738463435892,-165.76856998,0.00015982,2]
[351234202,1738463435901,-1959.19599111,0.00015996,2]
[351234203,1738463435911,-300.0,0.00015999,2]
[351234205,1738463435920,-300.0,0.00015999,2]
[351234207,1738463435929,-300.0,0.00015999,2]
[351234209,1738463435939,-309.20194245,0.00015999,2]
[351234210,1738463435948,-300.0,0.00015999,2]
[351234211,1738463435958,-300.0,0.00015999,2]
[351234212,1738463435967,-500.0,0.00015999,2]
[351234213,1738463435977,-1221.0,0.00016,2]
[351234214,1738463435986,-431.72285469,0.00016,2]
[351234215,1738463435995,-28930.01632753,0.00016,2]
[351234216,1738463436147,-345.42,0.00015204,2]
[351234217,1738463436157,-84126.61127809,0.00016,2]
[351234218,1738463436174,-296.880003,0.00016,2]
[351234219,1738463436186,-7584.80622634,0.00016,2]
[351234220,1738463436227,-10150.0,0.00016,2]
[351234223,1738463438203,-782.98429134,0.00016,2]
[351234224,1738463438215,-2446.82410565,0.00016,2]
[351234225,1738463438226,-1249.3,0.00016,2]
[351234226,1738463438238,-1080.74535517,0.00016,2]
[351234229,1738463438254,-808.5794429,0.00016,2]
[351234232,1738463438275,-10140.0,0.00016,2]
[351234236,1738463438302,-1178.74683803,0.00016,2]
[351234240,1738463438339,-206139.99999996,0.00016,2]
[351234243,1738463438351,-204271.79802151,0.00016,2]
[351234244,1738463438360,-367.92,0.00016,2]
[351234246,1738463438370,-6979.0,0.00016,2]
[351234248,1738463438379,-73992.12150765,0.00016,2]
[351234420,1738463440034,-535.85788251,0.00016,2]
[351234426,1738463440091,-852.16033007,0.00016,2]
[351234428,1738463440103,-1840.0,0.00016,2]
[351234445,1738463440256,-1391.61096279,0.00016,2]
[351234451,1738463440315,-1244.6844767,0.00016,2]
[351234454,1738463440327,-440.30697196,0.00016,2]
[351234455,1738463440338,-258.03676712,0.00016,2]
[351234456,1738463440427,-807.73443717,0.00016,2]
[351234457,1738463440438,-727.40483639,0.00016,2]
[351234458,1738463440449,-17004.07780853,0.00016,2]
[351234571,1738463442858,-5975.94569731,0.00016,2]
[351234572,1738463443092,-867.14097161,0.00016,2]
[351234573,1738463443171,-453.0,0.00016,2]
[351234574,1738463443182,-500.0,0.00016,2]
[351234575,1738463443259,-9573.47026527,0.00016,2]
[351234576,1738463443277,-1938.45550524,0.00016,2]
[351234577,1738463443290,-5051.5465,0.00016,2]
[351234598,1738463445867,-5296.52166056,0.000159,2]
[351234599,1738463445877,-1098.0,0.00016,2]
[351234600,1738463445886,-46142.47833944,0.00016,2]
[351234601,1738463445916,-532.03038601,0.00016,2]
[351234602,1738463445975,-23785.40437994,0.00016,2]
[351234603,1738463446086,-3092.969476,0.00016,2]
[351234671,1738463944003,1371.0,0.00023,120]
[351234674,1738464535675,209.48,0.00010137,2]
[351234684,1738464632252,-327.0,0.00013154,2]
[351234685,1738464632262,-152.0,0.00014106,3]
[351234686,1738464632272,-152.0,0.00014752,4]
[351234687,1738464632282,-1934.47729131,0.00014905,2]
[351234688,1738464632293,-1298.24234568,0.00014905,2]
[351234689,1738464632305,-876.79,0.00014905,2]
[351234690,1738464632317,-667.67218453,0.00014905,2]
[351234691,1738464632355,-632.80932065,0.00014905,2]
[351234692,1738464632368,-7715.60334819,0.00014905,2]
[351234693,1738464632461,-345.3348,0.00014905,2]
[351234694,1738464632472,-1143.87326722,0.00014905,2]
[351234982,1738464638072,-816.50605196,0.00014905,2]
[351234983,1738464638126,-512.27264014,0.00014905,2]
[351234984,1738464638181,-1568.34875032,0.00014905,2]
[351234985,1738464638190,-467.77836836,0.00014911,2]
[351234986,1738464638241,-532.22163164,0.00014911,2]
[351234987,1738464638250,-500.0,0.00015044,2]
[351234988,1738464638259,-600.0,0.00015044,2]
[351234989,1738464638268,-294.19,0.00015075,2]
[351234990,1738464638277,-172.55,0.00015086,2]
[351234991,1738464638286,-258.58,0.00015094,2]
[351234992,1738464638295,-152.0,0.00015398,5]
[351234993,1738464638309,-327.0,0.00015418,2]
[351234994,1738464638317,-228.36557502,0.00015589,2]
[351234995,1738464638326,-228.36557502,0.00015644,2]
[351234996,1738464638335,-228.36557502,0.00015726,2]
[351234997,1738464638344,-228.36557502,0.00015808,2]
[351234998,1738464638353,-3762.40455,0.0001584,2]
[351234999,1738464638363,-228.36557502,0.0001589,2]
[351235000,1738464638371,-930.34573326,0.000159,2]
[351235001,1738464638382,-3779.0,0.000159,2]
[351235002,1738464638439,-4118.11236674,0.000159,2]
[351235003,1738464638449,-258.3461,0.000159,2]
[351235004,1738464638458,-165.76856998,0.000159,2]
[351235005,1738464638467,-169.38415646,0.000159,2]
[351235006,1738464638477,-1564.67432395,0.000159,2]
[351235007,1738464638486,-2839.69250654,0.000159,2]
[351235008,1738464638495,-4766.86949454,0.000159,2]
[351235009,1738464638505,-7852.54936085,0.00015924,2]
[351235011,1738464638514,-1564.67432392,0.00015943,2]
[351235013,1738464638523,-4766.86949449,0.00015943,2]
[351235015,1738464638532,-381.83,0.00015944,2]
[351235017,1738464638541,-228.36557502,0.00015945,2]
[351235019,1738464638550,-7852.54936085,0.00015958,2]
[351235021,1738464638559,-7852.54936085,0.00015977,2]
[351235023,1738464638568,-1564.67432392,0.00015985,2]
[351235025,1738464638578,-7852.54936085,0.00015991,2]
[351235027,1738464638587,-300.0,0.00015999,2]
[351235029,1738464638595,-300.0,0.00015999,2]
[351235031,1738464638604,-300.0,0.00015999,2]
[351235033,1738464638613,-300.0,0.00015999,2]
[351235035,1738464638623,-590.96,0.00015999,2]
[351235037,1738464638631,-300.0,0.00015999,2]
[351235039,1738464638642,-996.0,0.00016,2]
[351235041,1738464638651,-215.86142735,0.00016,2]
[351235043,1738464638660,-183035.40651661,0.00016,2]
[351235431,1738464642826,4500.0,0.00023,120]
[351235466,1738464643221,-4766.86949449,0.00015985,2]
[351235468,1738464643231,-96558.23942815,0.00016,2]
[351235470,1738464643241,-30000.0,0.00016,2]
[351235472,1738464643250,-473775.87354516,0.00016,2]
[351235481,1738464643329,-310.65256348,0.00016,2]
[351235768,1738464646161,-10072.7816784,0.00016,2]
[351236076,1738464678769,3667.44056565,0.00021,120]
[351236078,1738465131177,10462.5072276,0.00010661,7]
[351236079,1738465132285,21027.933662,0.00010661,7]
[351236081,1738465343434,159.66,0.00010137,2]
[351236091,1738465832223,-368.98,0.00012842,2]
[351236092,1738465832233,-450.89498323,0.00012842,2]
[351236093,1738465832242,-20.96520377,0.00013,2]
[351236094,1738465832253,-529.03479623,0.00013,2]
[351236095,1738465832263,-182.67,0.00013699,2]
[351236096,1738465832272,-150.0,0.00014126,2]
[351236097,1738465832281,-150.0,0.00014374,2]
[351236098,1738465832291,-150.0,0.00014565,2]
[351236099,1738465832301,-150.0,0.00014599,2]
[351236100,1738465832311,-264.99,0.00014645,2]
[351236101,1738465832320,-4920.49385697,0.00014657,2]
[351236102,1738465832340,-4138.81614303,0.00014657,2]
[351236103,1738465832349,-1000.0,0.00014661,2]
[351236104,1738465832359,-150.0,0.00014705,2]
[351236105,1738465832368,-703.71,0.00014712,2]
[351236106,1738465832378,-414.53,0.00014759,2]
[351236107,1738465832387,-150.0,0.00014773,2]
[351236108,1738465832397,-150.0,0.00014852,2]
[351236109,1738465832407,-150.0,0.00014872,2]
[351236110,1738465832417,-170.44,0.00014911,2]
[351236111,1738465832429,-150.0,0.00015008,2]
[351236112,1738465832438,-150.0,0.0001502,2]
[351236113,1738465832448,-2751.0,0.00015031,2]
[351236114,1738465832457,-600.0,0.00015044,2]
[351236115,1738465832469,-500.0,0.00015044,2]
[351236116,1738465832480,-370.65,0.00015044,2]
[351236117,1738465832489,-375.2,0.00015044,2]
[351236118,1738465832501,-373.48,0.00015044,2]
[351236119,1738465832511,-378.92,0.00015044,2]
[351236120,1738465832522,-368.98,0.00015105,2]
[351236121,1738465832531,-589.72,0.00015141,2]
[351236122,1738465832541,-150.0,0.00015235,2]
[351236123,1738465832551,-150.0,0.00015235,2]
[351236124,1738465832561,-150.0,0.00015235,2]
[351236125,1738465832571,-448.85,0.00015241,2]
[351236126,1738465832580,-774.54,0.00015241,2]
[351236127,1738465832593,-439.34,0.00015241,2]
[351236128,1738465832603,-774.54,0.00015241,2]
[351236129,1738465832614,-439.34,0.00015241,2]
[351236130,1738465832623,-774.54,0.00015241,2]
[351236131,1738465832632,-439.34,0.00015241,2]
[351236132,1738465832643,-150.0,0.00015278,2]
[351236133,1738465832653,-400.0,0.000154,5]
[351236134,1738465832663,-211.0,0.0001544,2]
[351236135,1738465832672,-150.0,0.00015443,2]
[351236136,1738465832682,-150.0,0.00015479,2]
[351236137,1738465832692,-800.0,0.000155,5]
[351236138,1738465832702,-602.02318774,0.0001554,2]
[351236139,1738465832714,-403.97681226,0.0001554,2]
[351236140,1738465832723,-3910.0,0.0001554,2]
[351236141,1738465832733,-151.178,0.0001554,2]
[351236142,1738465832743,-1107.0,0.0001554,2]
[351236143,1738465832753,-193.34845731,0.00015578,2]
[351236144,1738465832763,-157.42399618,0.00015589,2]
[351236145,1738465832773,-1300.0,0.000156,5]
[351236146,1738465832782,-211.0,0.0001563,2]
[351236147,1738465832792,-150.0,0.00015675,2]
[351236148,1738465832801,-2887.0,0.000157,2]
[351236149,1738465832811,-1700.0,0.000157,5]
[351236150,1738465832821,-154.293364,0.00015762,2]
[351236151,1738465832831,-150.0,0.0001578,2]
[351236152,1738465832843,-157.42399618,0.00015781,2]
[351236153,1738465832852,-1947.7865,0.000158,2]
[351236154,1738465832862,-2100.0,0.000158,5]
[351236155,1738465832871,-205.0,0.0001583,2]
[351236157,1738465832880,-211.0,0.0001583,2]
[351236159,1738465832889,-150.0,0.00015881,2]
[351236161,1738465832898,-181.0,0.00015887,2]
[351236163,1738465832907,-181.42,0.00015887,2]
[351236165,1738465832916,-1568.35,0.0001589,7]
[351236167,1738465832925,-150.0,0.00015896,2]
[351236169,1738465832934,-1002.23960669,0.00015899,2]
[351236171,1738465832943,-163.42861578,0.000159,2]
[351236173,1738465832952,-174.23669982,0.000159,2]
[351236175,1738465832961,-2745.03608952,0.000159,2]
[351236177,1738465832970,-2381.23392205,0.000159,2]
[351236179,1738465832980,-400.0,0.000159,5]
[351236181,1738465832989,-189.69051089,0.000159,2]
[351236182,1738465833001,-44.41028911,0.000159,2]
[351236183,1738465833010,-476.00965005,0.000159,2]
[351236185,1738465833021,-3.71386825,0.000159,2]
[351236187,1738465833031,-174.86106262,0.000159,2]
[351236188,1738465833040,-3813.49559561,0.000159,2]
[351236190,1738465833049,-150.88462104,0.00015904,2]
[351236191,1738465833058,-150.0,0.0001591,2]
[351236193,1738465833068,-1017.5859995,0.00015912,2]
[351236195,1738465833077,-242.65147865,0.00015931,2]
[351236196,1738465833087,-242.65147865,0.00015936,2]
[351236198,1738465833096,-2381.23392201,0.00015944,2]
[351236200,1738465833106,-1360.00044599,0.00015949,2]
[351236202,1738465833129,-322.78925229,0.00015949,2]
[351236204,1738465833140,-648.23083779,0.00015949,2]
[351236206,1738465833152,-1482.47505952,0.00015949,2]
[351236208,1738465833163,-242.65147865,0.0001595,2]
[351236210,1738465833172,-266.20845425,0.00015959,2]
[351236212,1738465833180,-266.20845425,0.00015974,2]
[351236213,1738465833190,-653.97860941,0.0001598,2]
[351236215,1738465833203,-803.28453,0.0001598,2]
[351236217,1738465833218,-9432.41340714,0.0001598,2]
[351236222,1738465833258,-6989.99159051,0.0001598,2]
[351236224,1738465833270,-505.89002522,0.0001598,2]
[351236225,1738465833282,-12595.3150386,0.0001598,2]
[351236227,1738465833294,-1209.496,0.0001598,2]
[351236230,1738465833309,-1677.34175643,0.0001598,2]
[351236234,1738465833350,-646.9888024,0.0001598,2]
[351236236,1738465833373,-429.82534274,0.0001598,2]
[351236637,1738465838188,-824.10045999,0.0001598,2]
[351236638,1738465838204,-971.4142008,0.0001598,2]
[351236639,1738465838215,-316.21403075,0.0001598,2]
[351236640,1738465838226,-3241.2894437,0.0001598,2]
[351236641,1738465838241,-6596.03655,0.0001598,2]
[351236642,1738465838252,-4751.8493865,0.0001598,2]
[351236643,1738465838264,-8351.96028301,0.0001598,2]
[351236644,1738465838299,-20780.54390345,0.0001598,2]
[351236645,1738465838310,-4294.63507056,0.0001598,2]
[351236646,1738465838320,-178.302819,0.0001598,2]
[351236647,1738465838329,-266.20845425,0.00015984,2]
[351236648,1738465838341,-242.65147865,0.00015987,2]
[351236649,1738465838350,-2381.23392201,0.00015989,2]
[351236650,1738465838359,-159.17992848,0.0001599,2]
[351236651,1738465838368,-266.20845425,0.00015992,2]
[351236652,1738465838378,-3813.49559559,0.00015997,2]
[351236653,1738465838387,-300.0,0.00015999,2]
[351236654,1738465838397,-300.0,0.00015999,2]
[351236655,1738465838406,-300.0,0.00015999,2]
[351236656,1738465838416,-300.0,0.00015999,2]
[351236657,1738465838426,-566.34,0.00015999,2]
[351236658,1738465838438,-372.15,0.00016,2]
[351236659,1738465838447,-773.69542262,0.00016,2]
[351236660,1738465838463,-374.30457738,0.00016,2]
[351236661,1738465838473,-215.86142734,0.00016,2]
[351236662,1738465838482,-1981.51271439,0.00016,2]
[351236663,1738465838493,-12893.8938511,0.00016,2]
[351236664,1738465838509,-474.90745092,0.00016,2]
[351236674,1738465838708,-783.60560307,0.00016,2]
[351236678,1738465838734,-4797.57329017,0.00016,2]
[351236690,1738465838841,-8749.44770489,0.00016,2]
[351236692,1738465838852,-1508.20205936,0.00016,2]
[351236694,1738465838867,-1003.64839968,0.00016,2]
[351236698,1738465838891,-99634.15096376,0.00016,2]
[351236700,1738465838902,-3511.95,0.00016,2]
[351236702,1738465838913,-1203.88782761,0.00016,2]
[351236772,1738465840454,-1759.8369796,0.00016,2]
[351236773,1738465840560,-310.5,0.00016,2]
[351236774,1738465840572,-12210.74810465,0.00016,2]
[351236775,1738465840584,-4055.41774549,0.00016,2]
[351236776,1738465840614,-3419.99457149,0.00016,2]
[351236777,1738465840668,-330.56527741,0.00016,2]
[351236977,1738465843297,-200.0,0.000151,5]
[351236978,1738465843306,-802.0,0.00016,2]
[351236979,1738465843445,-1004.9058,0.00016,2]
[351236980,1738465843499,-1056.06830296,0.00016,2]
[351236981,1738465843554,-157583.98917123,0.00016,2]
[351236982,1738465843564,-447516.99329657,0.00016,2]
[351236983,1738465843576,-522.1066051,0.00016,2]
[351237016,1738465846564,-500.0,0.000152,5]
[351237017,1738465846573,-700.0,0.000153,5]
[351237018,1738465846583,-1442.11198999,0.00016,2]
[351237019,1738465846858,-408.15271456,0.00016,2]
[351237076,1738466172371,162.76,0.00010137,2]
[351237080,1738466435947,164.77185174,0.00023,120]
[351237081,1738466452111,-150.0,0.00012682,2]
[351237082,1738466452133,-150.0,0.00012782,2]
[351237083,1738466452158,-504.74,0.00012882,2]
[351237084,1738466452180,-150.0,0.00013023,2]
[351237085,1738466452204,-300.0,0.00013042,2]
[351237086,1738466452226,-150.0,0.00013141,2]
[351237087,1738466452250,-150.0,0.00013366,2]
[351237088,1738466452273,-150.0,0.00013467,2]
[351237089,1738466452301,-150.0,0.00013836,2]
[351237090,1738466452329,-150.0,0.00013849,2]
[351237091,1738466579522,195.84,0.00016658,30]
[351237092,1738466708599,3995.26,0.00012,2]
[351237093,1738466708625,292367.52618131,0.00012,2]
[351237098,1738466862945,1445.09239304,0.0001,2]
[351237099,1738466879957,1509.24427012,0.0001,2]
[351237102,1738466940427,1538.68482004,0.00022,120]
[351237103,1738466965142,-814.887844,0.00013816,2]
[351237104,1738466965165,-150.0,0.00013886,2]
[351237105,1738466965187,-3656.478262,0.00014,2]
[351237129,1738467031487,-287.83754999,0.00013999,2]
[351237131,1738467031500,-12.16245001,0.00013999,2]
[351237134,1738467031510,-4636.33754998,0.00014,2]
[351237141,1738467031539,-774.09765719,0.00014,2]
[351237145,1738467031598,-12612.60000238,0.00014,2]
[351237146,1738467031655,-28330.6322858,0.00014,2]
[351237147,1738467031665,-1004.3019145,0.00014185,2]
[351237148,1738467031675,-4700.16,0.00014213,2]
[351237149,1738467031685,-500.0,0.00014222,2]
[351237150,1738467031694,-1000.0,0.0001424,2]
[351237151,1738467031704,-150.0,0.00014382,2]
[351237152,1738467031713,-23900.0,0.00014383,2]
[351237153,1738467031723,-171.12,0.00014404,2]
[351237154,1738467031733,-884.86,0.00014486,2]
[351237155,1738467031742,-365.57,0.00014506,2]
[351237156,1738467031751,-250.0,0.00014557,2]
[351237157,1738467031761,-178.9,0.00014616,2]
[351237158,1738467031770,-200.0,0.00014847,2]
[351237159,1738467031780,-1697.83898625,0.00014926,2]
[351237160,1738467031790,-186.33,0.00014933,2]
[351237161,1738467031800,-40000.0,0.00015,2]
[351237162,1738467031809,-150.0,0.00015002,2]
[351237163,1738467031819,-500.0,0.00015044,2]
[351237164,1738467031829,-600.0,0.00015044,2]
[351237165,1738467031847,-369.2,0.00015044,2]
[351237166,1738467031867,-379.38,0.00015044,2]
[351237167,1738467031886,-288.4,0.00015055,2]
[351237168,1738467031895,-504.74,0.00015146,2]
[351237169,1738467031905,-441.5,0.00015178,2]
[351237170,1738467031915,-2008.67,0.00015178,2]
[351237171,1738467031924,-707.41,0.00015178,2]
[351237172,1738467031934,-150.0,0.00015236,2]
[351237173,1738467031943,-150.0,0.00015298,2]
[351237174,1738467031953,-420.0,0.00015337,2]
[351237175,1738467031962,-368.77,0.00015343,2]
[351237176,1738467031976,-200.0,0.000154,5]
[351237177,1738467031986,-150.0,0.000154,2]
[351237178,1738467031995,-500.0,0.000155,5]
[351237179,1738467032005,-255.0,0.00015504,2]
[351237180,1738467032014,-173.0,0.00015589,2]
[351237181,1738467032025,-800.0,0.000156,5]
[351237182,1738467032035,-151.45,0.00015615,2]
[351237183,1738467032045,-2713.0,0.000157,2]
[351237184,1738467032055,-1100.0,0.000157,5]
[351237185,1738467032065,-176.41786852,0.00015781,2]
[351237186,1738467032075,-173.0,0.00015781,2]
[351237187,1738467032085,-641.9505687,0.000158,2]
[351237188,1738467032095,-287.48940261,0.000158,2]
[351237189,1738467032106,-1400.0,0.000158,5]
[351237190,1738467032116,-5312.0247983,0.000158,2]
[351237191,1738467032131,-400.4034796,0.00015807,2]
[351237192,1738467032142,-5312.02479828,0.00015822,2]
[351237193,1738467032152,-1204.0,0.0001584,2]
[351237194,1738467032162,-5312.02479828,0.00015844,2]
[351237195,1738467032171,-5312.02479828,0.00015867,2]
[351237196,1738467032181,-5312.02479828,0.00015889,2]
[351237197,1738467032192,-1523.84,0.0001589,7]
[351237198,1738467032203,-42063.83175037,0.0001589,2]
[351237199,1738467032214,-150.0,0.00015895,2]
[351237200,1738467032224,-375.7881,0.00015899,2]
[351237201,1738467032235,-342.2511,0.000159,2]
[351237202,1738467032245,-4118.1123,0.000159,2]
[351237203,1738467032256,-3127.8055,0.000159,2]
[351237204,1738467032266,-2348.1536,0.000159,2]
[351237205,1738467032276,-163.24253746,0.000159,2]
[351237206,1738467032286,-3336.49714489,0.000159,2]
[351237207,1738467032296,-169.38415646,0.000159,2]
[351237208,1738467032310,-200.0,0.000159,5]
[351237209,1738467032319,-173.56623918,0.000159,2]
[351237210,1738467032329,-2800.90920052,0.000159,2]
[351237211,1738467032339,-197.34499344,0.000159,2]
[351237212,1738467032349,-10641.21575101,0.00015905,2]
[351237213,1738467032359,-10641.21575101,0.00015906,2]
[351237214,1738467032370,-7852.54936085,0.00015906,2]
[351237215,1738467032384,-200.0,0.00015911,2]
[351237216,1738467032394,-3336.49714483,0.00015911,2]
[351237217,1738467032405,-5312.02479828,0.00015911,2]
[351237218,1738467032415,-42063.83175037,0.00015918,2]
[351237219,1738467032425,-3336.49714483,0.00015922,2]
[351237220,1738467032436,-200.0,0.0001593,2]
[351237221,1738467032447,-3336.49714483,0.00015933,2]
[351237222,1738467032457,-5312.02479828,0.00015933,2]
[351237223,1738467032467,-200.0,0.00015942,2]
[351237224,1738467032477,-3336.49714483,0.00015944,2]
[351237225,1738467032487,-7852.54936085,0.00015951,2]
[351237226,1738467032497,-42063.83175037,0.00015955,2]
[351237227,1738467032508,-3336.49714483,0.00015956,2]
[351237228,1738467032518,-5312.02479828,0.00015956,2]
[351237229,1738467032528,-7852.54936085,0.00015957,2]
[351237230,1738467032538,-7852.54936085,0.00015965,2]
[351237231,1738467032548,-3336.49714483,0.00015967,2]
[351237232,1738467032558,-10641.21575101,0.00015967,2]
[351237233,1738467032568,-15608.0,0.00015973,2]
[351237234,1738467032578,-3336.49714483,0.00015978,2]
[351237235,1738467032588,-5312.02479828,0.00015978,2]
[351237236,1738467032598,-10641.21575101,0.00015987,2]
[351237237,1738467032609,-3336.49714483,0.00015989,2]
[351237238,1738467032619,-1016.9769486,0.00015989,2]
[351237239,1738467032633,-42063.83175037,0.0001599,2]
[351237240,1738467032643,-526124.04588053,0.0001599,2]
[351237241,1738467032661,-250.22877249,0.0001599,2]
[351237242,1738467032675,-1199.9988,0.0001599,2]
[351237243,1738467032705,-998.50988579,0.0001599,2]
[351237244,1738467032717,-9007.6670995,0.0001599,2]
[351237245,1738467032730,-2635.10814785,0.0001599,2]
[351237246,1738467032756,-27844.77561624,0.0001599,2]
[351237247,1738467032768,-795.43564438,0.0001599,2]
[351237248,1738467032780,-9953.0741798,0.0001599,2]
[351237249,1738467032883,-343.90650373,0.0001599,2]
[351237250,1738467033139,-344.40721085,0.0001599,2]
[351237251,1738467033197,-397314.2163879,0.0001599,2]
[351237252,1738467033211,-6943.557322,0.0001599,2]
[351237271,1738467037412,-1999.74,0.0001599,2]
[351237272,1738467037423,-20840.0,0.0001599,2]
[351237273,1738467037523,-386.87885333,0.0001599,2]
[351237274,1738467037535,-450.95372915,0.0001599,2]
[351237275,1738467037546,-1079.34910173,0.0001599,2]
[351237276,1738467037557,-50086.49661603,0.0001599,2]
[351237277,1738467037569,-14346.66954172,0.0001599,2]
[351237278,1738467037603,-530000.00000002,0.0001599,2]
[351237279,1738467037614,-4034.9,0.0001599,2]
[351237280,1738467037627,-166053.65284496,0.0001599,2]
[351237281,1738467037641,-250000.0,0.0001599,2]
[351237282,1738467037651,-168.52607552,0.0001599,2]
[351237283,1738467037660,-168.52607552,0.0001599,2]
[351237284,1738467037670,-123836.25283394,0.00015997,2]
[351237285,1738467037683,-882.6,0.00015997,2]
[351237286,1738467037695,-5200.0,0.00015997,2]
[351237287,1738467037712,-939.75570043,0.00015997,2]
[351237288,1738467037741,-2668.34223779,0.00015997,2]
[351237289,1738467037754,-962.63357913,0.00015997,2]
[351237290,1738467037766,-316.23932305,0.00015997,2]
[351237292,1738467037777,-7364.27313649,0.00015997,2]
[351237294,1738467037789,-3264.625404,0.00015997,2]
[351237297,1738467037812,-302.45342042,0.00015997,2]
[351237299,1738467037821,-300.0,0.00015999,2]
[351237301,1738467037831,-300.0,0.00015999,2]
[351237303,1738467037841,-300.0,0.00015999,2]
[351237305,1738467037852,-672.27768006,0.00015999,2]
[351237307,1738467037862,-300.0,0.00015999,2]
[351237309,1738467037872,-300.0,0.00015999,2]
[351237311,1738467037884,-300.0,0.00015999,2]
[351237313,1738467037895,-17216.85687951,0.00015999,2]
[351237316,1738467037915,-5007.0,0.00015999,2]
[351237483,1738467039543,-554.05,0.0001598,3]
[351237484,1738467039552,-803.98166143,0.00015999,2]
[351237488,1738467039601,-327.07723076,0.00015999,2]
[351237490,1738467039611,-593.39,0.00015999,2]
[351237492,1738467039621,-1437.0,0.00016,2]
[351237494,1738467039635,-623.82544434,0.00016,2]
[351237496,1738467039648,-33.13027755,0.00016,2]
[351237498,1738467039658,-1018.95035665,0.00016,2]
[351237501,1738467039680,-10420.0,0.00016,2]
[351237508,1738467039746,-15415.40000005,0.00016,2]
[351237510,1738467039759,-319.53395,0.00016,2]
[351237524,1738467039960,-50917.797873,0.00016,2]
[351237777,1738467042468,-1327.08174195,0.00016,2]
[351237780,1738467042481,-1004.14924943,0.00016,2]
[351237784,1738467042492,-619.819988,0.00016,2]
[351237793,1738467042529,-52142.86567038,0.00016,2]
[351237809,1738467042645,-253.46852257,0.00016,2]
[351237811,1738467042657,-2700.0,0.00016,2]
[351237813,1738467042668,-1040.53303084,0.00016,2]
[351237815,1738467042680,-4515.59523507,0.00016,2]
[351237818,1738467042692,-2050.1214507,0.00016,2]
[351237820,1738467042704,-211208.17784246,0.00016,2]
[351237822,1738467042716,-10550.0,0.00016,2]
[351237825,1738467042734,-310.85270869,0.00016,2]
[351237827,1738467042746,-146453.73343935,0.00016,2]
[351237829,1738467042757,-370.23,0.00016,2]
[351237831,1738467042768,-458277.01902845,0.00016,2]
[351237834,1738467042780,-1459.59409124,0.00016,2]
[351237836,1738467042792,-18356.13092375,0.00016,2]
[351237838,1738467042804,-275.235041,0.00016,2]
[351238011,1738467045421,-1003.6506631,0.00016,2]
[351238014,1738467045439,-2909.16125927,0.00016,2]
[351238017,1738467045450,-15000.5,0.00016,2]
[351238019,1738467045461,-61620.0,0.00016,2]
[351238023,1738467045490,-4930.30487223,0.00016,2]
[351238025,1738467045611,-389.96679915,0.00015999,2]
[351238026,1738467045620,-926944.0568313,0.00016,2]
[351238027,1738467045632,-973.49621314,0.00016,2]
[351238028,1738467045653,-4987.32542508,0.00016,2]